[Event "85th Tata Steel Masters 2023"]
[White "Carlsen,Magnus"]
[Black "Rapport,Richard"]
[Site "Wijk aan Zee"]
[Round "7.6"]
[Annotator "TA"]
[Result "1-0"]
[Date "2023.01.21"]
[WhiteElo "2859"]
[BlackElo "2740"]
[PlyCount "71"]
[TimeControl "60"]

{[%evp 9,71,15,19,14,15,15,21,16,17,0,0,0,8,-11,0,0,0,0,38,25,51,52,50,49,49,49,62,24,60,55,304,294,320,329,329,322,325,323,322,319,318,316,317,314,314,286,291,269,264,272,272,236,228,228,223,227,241,221,241,238,235,229,220,225]} 1. e4 {[%emt 0:2:33]} e5 {[%emt 0:2:28]} 2. Nf3 {[%emt 0:0:12]} Nf6 {[%emt 0:0:7]} 3. Nxe5 {[%emt 0:1:3]} d6 {[%emt 0:0:26]} 4. Nd3 {[%emt 0:1:18]} Nxe4 {[%emt 0:0:37]} 5. Qe2 {[%emt 0:0:19]} Qe7 {[%emt 0:0:9]} 6. Nf4 {[%emt 0:0:12] C42: Petroff Defence: 3 Nxe5 and unusual White 3rd moves.} c6 {[%emt 0:5:22] Against Nd5} 7. f3 {[%emt 0:8:59]} Nf6 {[%emt 0:5:53]} 8. d4 {[%emt 0:0:24] The position is equal.} Bf5 {[%emt 0:6:54]} 9. c4 {[%emt 0:7:33][%cal Yc2c4,Yc4c5][%mdl 32]} (9. Qxe7+ {simplifies} Bxe7 10. Na3 h5 11. Kf2 )h5 {[%emt 0:2:45]} 10. Nc3 {[%emt 0:1:35]} Na6 {[%emt 0:2:46] [#]} 11. Kf2 $146 {[%emt 0:11:53]} (11. Qxe7+ {simplifies} Bxe7 12. Be3 Rc8 13. Bd3 )({Predecessor:} 11. a3 O-O-O 12. Qxe7 Bxe7 13. h4 Nc7 14. Kf2 d5 15. c5 Ne6 16. Nxe6 fxe6 17. Bg5 {½-½ Tabatabaei,M (2645)-Suleymanli,A (2537) Sharjah Masters 5th 2022 (1)} )Nb4 {[%emt 0:20:12]} (11... Qxe2+ {simplifies} 12. Bxe2 Nb4 13. Rd1 Nc2 )12. Qd1 {[%emt 0:7:7]} O-O-O {[%emt 0:10:19]} 13. Nd3 {[%emt 0:6:19]} d5 {[%emt 0:3:39]} 14. c5 {[%emt 0:15:25]} Nxd3+ {[%emt 0:9:47]} 15. Bxd3 {[%emt 0:0:2]} Ne4+ {[%emt 0:0:44]} 16. fxe4 {[%emt 0:1:41]} dxe4 {[%emt 0:0:23][%cal Yd8d4] And now ...Rxd4! would win.} 17. Be2 {[%emt 0:0:7] Threatens to win with Be3.} Qf6 {[%emt 0:0:42]} 18. Be3 {[%emt 0:5:24] aiming for Qa4.} (18. Bxh5 $2 Bg4+ 19. Ke1 Bxd1 $19 )Bxc5 {[%emt 0:1:28][%mdl 64] [#] Pin} 19. Rf1 $1 {[%emt 0:4:51][%cal Yd4c5]} Qh4+ $2 {[%emt 0:6:40] A mistake that costs the game.} (19... Bxd4 $14 20. Qc1 (20. Bxd4 Rxd4 21. Qc1 Be6+ 22. Kg1 Qe5 $11 )Bh3+ 21. Ke1 Qh4+ 22. Rf2 (22. g3 Qe7 $11 )Bxe3 23. Qxe3 Bxg2 )20. Kg1 $18 {[%emt 0:1:39]} Bd6 {[%emt 0:0:14]} 21. Rxf5 {[%emt 0:0:11] Black must now prevent h3.} Qxh2+ {[%emt 0:2:3]} 22. Kf1 {[%emt 0:0:20][%cal Yg1f1,Yf1f2,Yf2e2,Ye2d2,Yd2d1][%mdl 32]} Qh1+ {[%emt 0:0:10] [#]} 23. Bg1 $1 {[%emt 0:3:22]} (23. Kf2 Qh4+ 24. Kf1 g6 $18 )g6 {[%emt 0:9:0]} 24. Rxf7 {[%emt 0:2:21]} Rhf8 {[%emt 0:3:50]} 25. Bc4 {[%emt 0:0:12]} (25. Qb3 Rxf7+ 26. Qxf7 Rf8 $16 )Bh2 {[%emt 0:6:16]} 26. Kf2 {[%emt 0:1:50]} Rxf7+ {[%emt 0:4:40]} 27. Bxf7 {[%emt 0:0:3]} Rf8 {[%emt 0:0:22]} 28. Qb3 {[%emt 0:2:2]} Bxg1+ {[%emt 0:0:42]} (28... e3+ $2 29. Kxe3 Qxg2 30. Qe6+ Kb8 31. Bxh2+ Qxh2 32. Ne2 $18 )29. Rxg1 {[%emt 0:0:9] Threatening mate with Qe6+.} Qh4+ {[%emt 0:1:48]} 30. Ke2 {[%emt 0:4:1] White wants to mate with Qe6+.} (30. Ke3 $6 Qg5+ 31. Ke2 Qg4+ 32. Kd2 Qf4+ 33. Kd1 Rxf7 34. Qe6+ Rd7 35. Nxe4 (35. Qxe4 $2 Rxd4+ $19 )Kd8 $18 )Qg4+ {[%emt 0:0:7] White is clearly better.} 31. Kd2 {[%emt 0:4:39] Strongly threatening Be6+.} Qf4+ {[%emt 0:0:10]} 32. Kd1 {[%emt 0:0:11]} Rxf7 {[%emt 0:0:28]} 33. Ne2 {[%emt 0:1:27]} ({But not} 33. Qe6+ Rd7 34. Re1 (34. Qxe4 $2 {perishes.} Rxd4+ 35. Ke1 Rxe4+ $19 )(34. Nxe4 Kc7 $18 )e3 35. Rxe3 (35. Qxg6 $2 Qxd4+ 36. Kc2 Qd2+ 37. Kb3 Qxe1 $19 )Qxd4+ 36. Kc2 Kc7 )Qf5 {[%emt 0:0:57]} 34. Qh3 {[%emt 0:0:46]} Qxh3 {[%emt 0:4:16]} 35. gxh3 {[%emt 0:0:26]} Rf3 {[%emt 0:0:3]} 36. Rg3 {[%emt 0:0:58] Weighted Error Value: White=0.07 (flawless) /Black=0.15 (very precise)} 1-0

[Event "85th Tata Steel Masters 2023"]
[White "Keymer,Vincent"]
[Black "Ding,Liren"]
[Site "Wijk aan Zee"]
[Round "7.7"]
[Annotator "TA"]
[Result "1/2-1/2"]
[Date "2023.01.21"]
[WhiteElo "2696"]
[BlackElo "2811"]
[PlyCount "115"]
[TimeControl "60"]

{[%evp 9,115,0,0,0,8,7,7,0,14,0,-2,-12,22,14,10,29,38,35,32,29,66,71,62,62,73,69,68,69,74,67,72,64,103,85,95,68,97,79,92,83,92,95,85,96,93,93,98,91,94,98,90,60,70,47,58,44,64,23,20,22,18,35,25,27,34,34,41,42,42,42,60,62,65,69,82,80,70,69,70,69,76,70,114,114,114,118,115,0,0,0,4,0,0,0,0,0,0,0,0,0,0,0,0,0,0,0,0,0]} 1. Nf3 {[%emt 0:0:3]} d5 {[%emt 0:0:37]} 2. e3 {[%emt 0:0:5]} Nf6 {[%emt 0:0:21]} 3. c4 {[%emt 0:0:4]} e6 {[%emt 0:0:9]} 4. Nc3 {[%emt 0:0:5]} b6 {[%emt 0:0:24]} 5. cxd5 {[%emt 0:0:16]} exd5 {[%emt 0:0:6]} 6. g3 {[%emt 0:0:18] A17: English Opening: 1...Nf6 with ...Bb4.} Bd6 {[%emt 0:1:36]} 7. Bg2 {[%emt 0:0:5]} O-O {[%emt 0:1:16]} 8. O-O {[%emt 0:0:4]} Re8 {[%emt 0:1:14]} 9. Re1 {[%emt 0:0:18]} Nbd7 {[%emt 0:6:11]} 10. d3 {[%emt 0:0:37]} Ba6 {[%emt 0:9:33] [#]} 11. e4 $146 {[%emt 0:1:50]} ({Predecessor:} 11. Nd4 c5 12. Ndb5 Ne5 13. d4 Nc6 14. Nxd6 Qxd6 15. dxc5 Qxc5 16. Nxd5 Nxd5 17. Qxd5 Qxd5 18. Bxd5 {1-0 Keymer,V (2591)-Pichot,A (2630) Biel blitz 54th 2021 (3)} )dxe4 {[%emt 0:5:45]} 12. dxe4 {[%emt 0:1:4]} Ne5 {[%emt 0:0:6]} 13. Nxe5 {[%emt 0:7:41]} Bxe5 {[%emt 0:0:5]} 14. Bf4 {[%emt 0:0:42]} Qd6 {[%emt 0:10:29]} 15. Qa4 {[%emt 0:5:52]} Bb7 {[%emt 0:17:18]} 16. Rad1 $36 {[%emt 0:0:45][%mdl 2048] White has the initiative.} Qc5 {[%emt 0:0:40]} 17. Bxe5 {[%emt 0:5:1]} Rxe5 {[%emt 0:7:55]} 18. Qd4 {[%emt 0:1:43]} Qxd4 {[%emt 0:0:6]} 19. Rxd4 {[%emt 0:0:4]} Kf8 {[%emt 0:0:8]} 20. f4 {[%emt 0:2:45]} Rc5 {[%emt 0:0:5]} 21. Re2 {[%emt 0:19:5]} Ng8 {[%emt 0:4:40]} 22. Red2 {[%emt 0:3:37]} Ke8 {[%emt 0:0:5] Dodges Rd8+} 23. Bh3 {[%emt 0:5:58]} Bc6 {[%emt 0:1:13]} 24. R2d3 {[%emt 0:3:26]} a5 {[%emt 0:0:51]} 25. a3 {[%emt 0:0:5]} a4 {[%emt 0:1:57]} 26. Rd2 {[%emt 0:6:17]} h5 {[%emt 0:5:4]} 27. e5 {[%emt 0:6:9]} Nh6 {[%emt 0:1:34]} 28. Bg2 {[%emt 0:3:34] White is more active.} Nf5 {[%emt 0:8:26]} 29. Bxc6+ {[%emt 0:0:47]} Rxc6 {[%emt 0:0:3]} 30. Re4 {[%emt 0:4:7]} Rg6 {[%emt 0:1:28]} 31. Nb5 {[%emt 0:6:14]} (31. Nxa4 h4 $11 )Rc6 {[%emt 0:0:55]} 32. Kf2 {[%emt 0:4:50]} Rc5 {[%emt 0:3:9]} 33. Rb4 {[%emt 0:1:9]} Rc1 {[%emt 0:1:33]} 34. Nc3 {[%emt 0:2:23]} Rd8 {[%emt 0:0:34]} 35. Rxd8+ {[%emt 0:1:22]} Kxd8 $11 {[%emt 0:0:5][%mdl 4096] Endgame KRN-KRN} 36. Re4 {[%emt 0:3:43]} Rh1 {[%emt 0:6:29]} ({Don't do} 36... Rc2+ 37. Re2 Rc1 38. Rd2+ (38. Nxa4 Ke7 $16 )Ke7 39. Nxa4 $16 )37. Kg2 {[%emt 0:0:45]} (37. Nxa4 $2 Rxh2+ 38. Kf3 Rh3 $19 )Rc1 {[%emt 0:0:5]} 38. Re2 {[%emt 0:1:50] Prevents Rc2} ({Much worse is} 38. Nxa4 Rc2+ 39. Kg1 Kd7 $15 )Ke7 {[%emt 0:1:3]} 39. Nxa4 {[%emt 0:2:4]} Ke6 {[%emt 0:6:44]} 40. Nc3 $1 {[%emt 0:3:4]} Nd4 {[%emt 0:0:4]} 41. Rd2 {[%emt 0:54:20]} Nb3 {[%emt 0:55:52]} 42. Rf2 {[%emt 0:5:11]} Nd4 {[%emt 0:0:43]} 43. Ne2 {[%emt 0:0:0]} Nxe2 {[%emt 0:0:0]} 44. Rxe2 $14 {[%emt 0:0:0] KR-KR} Rd1 {[%emt 0:0:0]} 45. Kh3 {[%emt 0:0:0]} g6 {[%emt 0:0:0]} 46. Rc2 {[%emt 0:0:0]} c5 {[%emt 0:0:0]} 47. Rc3 {[%emt 0:0:0] Inhibits Rd3.} f6 {[%emt 0:0:0] [#]} 48. Rb3 {[%emt 0:0:0]} (48. exf6 $1 $16 {next b4 is good for White.} Rd6 49. Rb3 )fxe5 $11 {[%emt 0:0:0] The position is equal.} 49. Rxb6+ {[%emt 0:0:0]} Kf5 $1 {[%emt 0:0:0]} 50. Rc6 {[%emt 0:0:0]} Rc1 {[%emt 0:0:0]} 51. fxe5 {[%emt 0:0:26] e6 is the strong threat.} Rc2 {[%emt 0:0:0]} 52. a4 {[%emt 0:3:10]} g5 {[%emt 0:0:0] [#] ( -> ...g4+)} 53. g4+ {[%emt 0:0:15]} hxg4+ {[%emt 0:0:0]} (53... Kf4 $5 54. Rf6+ $8 (54. gxh5 $2 {is a self mate.} g4+ {[%mdl 64] Deflection} 55. Kh4 Rxh2# )Kxe5 55. Rf5+ Ke6 $11 )54. Kg3 {[%emt 0:0:4] Hoping for e6.} Rxb2 {[%emt 0:0:0]} 55. e6 {[%emt 0:0:12] Black must now prevent e7.} Rb3+ {[%emt 0:0:0]} 56. Kf2 {[%emt 0:0:4][%cal Ye6e7] Threatens to win with e7!} Rb2+ {[%emt 0:0:0]} 57. Ke3 {[%emt 0:0:58] Strongly threatening e7.} Kf6 {[%emt 0:0:0]} 58. Rxc5 {[%emt 0:0:9] Weighted Error Value: White=0.06 (flawless) /Black=0.04 (flawless)} 1/2-1/2